fUSD/lending_fUSD_20240826
["ID","MTS","AMOUNT","RATE_DAILY","PERIOD"]
[336061516,1724685043255,-2505.60920584,0.00010026,2]
[336061518,1724685043265,-18227.02481316,0.000109,3]
[336061791,1724685046136,-1464.629,0.000109,3]
[336061793,1724685046147,-669.58337309,0.000109,3]
[336061806,1724685046283,-946.21399857,0.000109,3]
[336062071,1724685049383,190.63,9.984e-05,2]
[336062501,1724685116927,280.14,9.964e-05,2]
[336062502,1724685315358,445.11,8.219e-05,2]
[336062503,1724685380958,155.59382276,9.962e-05,2]
[336062505,1724685412127,5908.27,9.928e-05,2]
[336062506,1724685432540,1050.0,0.0001,2]
[336062507,1724685450907,236.11042651,9.962e-05,2]
[336062508,1724685464077,1000.0,9.93e-05,2]
[336062509,1724685559390,560.56,9.867e-05,2]
[336062510,1724685622750,180.08,9.925e-05,2]
[336062511,1724685628958,239.63,9.921e-05,2]
[336062515,1724685774570,536.38066794,9.921e-05,2]
[336062516,1724685816479,441.45,8.219e-05,2]
[336062517,1724685881534,277.81645606,9.962e-05,2]
[336062518,1724685898892,775.00144906,9.962e-05,2]
[336062529,1724685932332,155.90332643,9.962e-05,2]
[336062587,1724685933806,1373.8414158,0.0001,2]
[336062723,1724685986115,171.52,9.904e-05,2]
[336062724,1724686012436,200.0,9.894e-05,2]
[336062725,1724686014325,341.33951689,0.0001,4]
[336062726,1724686028313,341.33951689,0.0001,4]
[336062796,1724686061967,1638.43773382,0.0001,2]
[336062797,1724686092476,297.76769109,9.999e-05,2]
[336062802,1724686149239,2880.32,9.904e-05,2]
[336062823,1724686174963,1739.40578979,9.999e-05,2]
[336062833,1724686189965,-11493.0,0.000103,5]
[336062835,1724686196586,168.84,0.0001,2]
[336062843,1724686219677,295.03427055,9.999e-05,2]
[336062844,1724686223602,170.6804844,0.0001,2]
[336062851,1724686232277,-171.0,0.00010008,2]
[336062852,1724686232287,-159.57347377,0.00010009,2]
[336062853,1724686232298,-204.15155049,0.00010026,2]
[336062854,1724686232309,-182.27758577,0.00010026,2]
[336062855,1724686232319,-1569.52097129,0.00010097,2]
[336062856,1724686232329,-412.59987064,0.000101,2]
[336062857,1724686232338,-155.1137372,0.00010471,2]
[336062858,1724686232348,-215.1365458,0.00010471,2]
[336062859,1724686232358,-155.0,0.00010471,2]
[336062860,1724686232368,-169.91283276,0.00010471,2]
[336062861,1724686232377,-164.04919365,0.00010471,2]
[336062862,1724686232387,-166.73329142,0.00010471,2]
[336062863,1724686232397,-298.88080064,0.00010471,2]
[336062864,1724686232407,-164.35872033,0.00010471,2]
[336062865,1724686232417,-198.82606603,0.00010471,2]
[336062866,1724686232426,-441.45,0.00010471,2]
[336062867,1724686232436,-499.99,0.00010505,2]
[336062868,1724686232446,-327.2489738,0.00010505,2]
[336062869,1724686232455,-158.95,0.00010566,2]
[336062870,1724686232465,-1210.0,0.000106,2]
[336062871,1724686232476,-523.48607601,0.00010699,2]
[336062872,1724686232485,-157.01120965,0.00010699,2]
[336062873,1724686232495,-1000.0,0.000107,2]
[336062874,1724686232504,-3758.94,0.00010733,2]
[336062875,1724686232514,-3754.63,0.00010772,2]
[336062876,1724686232523,-7048.84430218,0.0001078,2]
[336062877,1724686232532,-3000.0,0.0001079,2]
[336062878,1724686232542,-155.94399844,0.000108,2]
[336062879,1724686232552,-1910.03696891,0.000108,2]
[336062880,1724686232563,-450.17467442,0.000108,2]
[336062881,1724686232573,-3739.41,0.00010818,2]
[336062882,1724686232583,-418.65388325,0.00010861,2]
[336062883,1724686232593,-371.95422743,0.00010861,2]
[336062884,1724686232603,-157.43873218,0.00010862,2]
[336062885,1724686232613,-150.0,0.00010878,2]
[336062886,1724686232623,-320.7457,0.00010879,2]
[336062887,1724686232634,-835.2933,0.0001088,2]
[336062888,1724686232644,-3110.4897,0.0001088,2]
[336062889,1724686232654,-772.25410805,0.00010884,2]
[336062890,1724686232663,-6835.586,0.00010886,2]
[336062891,1724686232673,-210.959,0.00010886,2]
[336062892,1724686232682,-772.25410805,0.00010888,2]
[336062893,1724686232692,-155.0,0.0001089,2]
[336062894,1724686232702,-155.0,0.0001089,2]
[336062895,1724686232711,-772.25410805,0.00010892,2]
[336062896,1724686232721,-772.25410805,0.00010895,2]
[336062897,1724686232731,-5168.826,0.00010895,2]
[336062898,1724686232741,-772.25410805,0.00010899,2]
[336062900,1724686232751,-1229.13866241,0.00010899,2]
[336062901,1724686232760,-1229.13866233,0.00010899,2]
[336062902,1724686232770,-1229.13866233,0.00010899,2]
[336062903,1724686232780,-1229.13866233,0.00010899,2]
[336062904,1724686232789,-1229.13866233,0.00010899,2]
[336062905,1724686232798,-1229.13866233,0.00010899,2]
[336062906,1724686232809,-1229.13866233,0.00010899,2]
[336062907,1724686232818,-1229.13866233,0.00010899,2]
[336062908,1724686232828,-1229.13866233,0.00010899,2]
[336062909,1724686232838,-1581.56108759,0.00010899,2]
[336062910,1724686232848,-155.0,0.00010899,2]
[336062911,1724686232858,-92221.07826735,0.000109,3]
[336062912,1724686233273,-2493.04984094,0.000109,3]
[336062913,1724686233286,-619.65174307,0.000109,3]
[336062914,1724686233300,-824.49360169,0.000109,3]
[336062915,1724686233314,-787.72537109,0.000109,3]
[336062918,1724686233340,-753.09403611,0.000109,3]
[336062920,1724686233351,-6683.26958659,0.000109,3]
[336062923,1724686233375,-1697.0288294,0.000109,3]
[336062925,1724686233387,-293.43812873,0.000109,3]
[336062927,1724686233399,-2879.4795,0.000109,3]
[336062929,1724686233416,-1355.72649835,0.000109,3]
[336062930,1724686233437,-445.10286169,0.000109,3]
[336062931,1724686236723,341.33951689,0.0001,4]
[336062934,1724686238327,-1138.0,0.00010886,2]
[336062936,1724686238337,-787.36,0.000109,3]
[336062937,1724686238348,-21518.31723883,0.000109,3]
[336062938,1724686238359,-6955.461751,0.000109,3]
[336062939,1724686238370,-8281.75755935,0.000109,3]
[336063017,1724686239483,-345.44,0.000109,3]
[336063020,1724686239494,-1140.80847151,0.000109,3]
[336063022,1724686239505,-655.5,0.000109,3]
[336063026,1724686239544,-1023.66957717,0.000109,3]
[336063029,1724686239555,-285.89639991,0.000109,3]
[336063035,1724686239617,413.46513712,0.0001,2]
[336063151,1724686240738,-518.424,0.00010886,2]
[336063153,1724686240747,-602.7973578,0.000109,3]
[336063156,1724686240760,-33598.95918226,0.000109,3]
[336063158,1724686240771,-38721.42066455,0.000109,3]
[336063163,1724686240815,-478.75263346,0.000109,3]
[336063165,1724686240826,-6768.1766297,0.000109,3]
[336063547,1724686244486,-285.005,0.00010886,2]
[336063549,1724686244496,-97.39512806,0.000109,3]
[336063552,1724686244507,-2142.91,0.000109,3]
[336063554,1724686244518,-336.84091214,0.000109,3]
[336063601,1724686245048,-8428.53130657,0.000109,3]
[336063614,1724686245162,-1202.82442801,0.000109,3]
[336063616,1724686245173,-500.57827625,0.000109,3]
[336063750,1724686246374,-312.925,0.000109,3]
[336063765,1724686246508,-3801.53,0.000109,3]
[336063767,1724686246519,-1584.71997666,0.000109,3]
[336064325,1724686253067,1051.50505486,0.0001,2]
[336064811,1724686321342,285.54742641,0.0001,4]
[336064812,1724686326452,162.89789025,0.0001,2]
[336064813,1724686330293,251.71,9.968e-05,2]
[336064816,1724686390297,21780.36,9.943e-05,2]
[336064896,1724686541440,840.0,9.931e-05,2]
[336064901,1724686559144,230.79,0.0001,2]
[336064905,1724686584536,170.48,9.936e-05,2]
[336064907,1724686607526,397.3,8.219e-05,2]
[336064911,1724686909880,158.25,9.925e-05,2]
[336064912,1724686944859,3150.70663306,9.926e-05,2]
[336064913,1724686950445,3150.70663305,9.962e-05,2]
[336064914,1724686954933,3150.70663305,9.997e-05,2]
[336064915,1724686999351,155.0,9.999e-05,2]
[336064916,1724687035022,155.0,9.999e-05,2]
[336064917,1724687120718,377.43,8.219e-05,2]
[336064918,1724687123455,328.0,9.926e-05,2]
[336064928,1724687235150,1050.0,0.0001,2]
[336064929,1724687271923,673.94561136,9.999e-05,2]
[336065059,1724687354492,485.73832575,9.999e-05,2]
[336065090,1724687401121,172.8,9.927e-05,2]
[336065115,1724687431399,-600.27,0.00010009,2]
[336065118,1724687431410,-301.62990115,0.00010009,2]
[336065123,1724687431454,-48.07304573,0.00010009,2]
[336065125,1724687431464,-316.80001562,0.00010009,2]
[336065127,1724687431473,-197.74408211,0.00010009,2]
[336065128,1724687431484,-1916.45031661,0.00010009,2]
[336065129,1724687431494,-204.33269481,0.00010097,2]
[336065130,1724687431503,-11173.06757292,0.00010471,2]
[336065131,1724687431515,-377.43,0.00010472,2]
[336065132,1724687431535,-1428.0,0.000106,2]
[336065133,1724687431544,-150.0,0.00010685,2]
[336065134,1724687431553,-3000.0,0.0001079,2]
[336065135,1724687431566,-500.0,0.00010813,2]
[336065136,1724687431575,-499.99,0.00010861,2]
[336065137,1724687431585,-3963.1983668,0.00010876,3]
[336065138,1724687431593,-323.10566794,0.00010878,2]
[336065139,1724687431603,-2272.0479,0.00010878,2]
[336065140,1724687431615,-616.246777,0.0001088,2]
[336065141,1724687431627,-616.24677699,0.00010882,2]
[336065142,1724687431641,-616.24677699,0.00010885,2]
[336065143,1724687431654,-616.24677699,0.00010887,2]
[336065144,1724687431665,-616.24677699,0.00010889,2]
[336065146,1724687431675,-323.10566793,0.00010889,2]
[336065148,1724687431686,-150.0,0.00010899,2]
[336065149,1724687431698,-153.6423328,0.00010899,2]
[336065150,1724687431710,-153.64233279,0.00010899,2]
[336065151,1724687431723,-153.64233279,0.00010899,2]
[336065152,1724687431736,-153.64233279,0.00010899,2]
[336065153,1724687431749,-153.64233279,0.00010899,2]
[336065154,1724687431761,-153.64233279,0.00010899,2]
[336065155,1724687431786,-153.64233279,0.00010899,2]
[336065157,1724687431797,-160357.12263448,0.000109,3]
[336065161,1724687431824,-2186.65209013,0.000109,3]
[336065164,1724687431839,-5569.10997595,0.000109,3]
[336065167,1724687431853,-7839.8235,0.000109,3]
[336065168,1724687431866,-428.45648914,0.000109,3]
[336065169,1724687431879,-7211.0,0.000109,3]
[336065170,1724687431892,-5243.29172088,0.000109,3]
[336065171,1724687431924,-6005.0,0.000109,3]
[336065172,1724687431939,-486.59595781,0.000109,3]
[336065173,1724687431955,-732.16651249,0.000109,3]
[336065180,1724687437538,-3141.52178352,0.000109,3]
[336065181,1724687437550,-29901.53162283,0.000109,3]
[336065182,1724687437562,-13279.10360009,0.000109,3]
[336065183,1724687437574,-17609.88353111,0.000109,3]
[336065365,1724687439562,-10656.57780804,0.000109,3]
[336065367,1724687439574,-6526.1592534,0.000109,3]
[336065384,1724687439726,-1496.70342545,0.000109,3]
[336065391,1724687439784,-264.98801654,0.000109,3]
[336065685,1724687442750,-218.93500526,0.00010026,2]
[336065687,1724687442759,-1727.66747599,0.000109,3]
[336065967,1724687445459,-3628.48163531,0.000109,3]
[336066169,1724687665874,360.01,8.219e-05,2]
[336066170,1724687683316,737.6,9.94e-05,2]
[336066177,1724688058802,235.93,9.932e-05,2]
[336066184,1724688159148,342.0,8.219e-05,2]
[336066189,1724688246361,409.92,9.897e-05,2]
[336066197,1724688289915,155.0,9.999e-05,2]
[336066563,1724688529717,155.21641346,0.0001,2]
[336066810,1724688571491,177.67,9.892e-05,2]
[336066865,1724688612137,500.0,0.0001,2]
[336066892,1724688631594,-169.89742313,0.00010373,2]
[336066894,1724688631604,-4171.0,0.00010437,2]
[336066896,1724688631613,-342.0,0.00010472,2]
[336066898,1724688631623,-994.62325443,0.00010566,2]
[336066899,1724688631633,-292.38707326,0.00010699,2]
[336066900,1724688631650,-860.27502339,0.00010767,2]
[336066901,1724688631659,-150.0,0.00010776,2]
[336066902,1724688631669,-785.9188,0.00010777,2]
[336066903,1724688631678,-9887.3644,0.00010777,2]
[336066904,1724688631690,-17412.75930054,0.00010777,2]
[336066905,1724688631699,-576.5618,0.00010777,2]
[336066906,1724688631708,-334.77863241,0.00010777,2]
[336066907,1724688631718,-150.99,0.0001079,2]
[336066908,1724688631730,-2581.02,0.0001079,2]
[336066909,1724688631740,-4798.42868441,0.00010799,2]
[336066910,1724688631750,-268.16800468,0.000108,2]
[336066911,1724688631761,-334.77863241,0.00010839,2]
[336066912,1724688631770,-383.09792926,0.00010852,2]
[336066913,1724688631781,-357.4813523,0.00010861,2]
[336066914,1724688631790,-155.17246031,0.00010861,2]
[336066915,1724688631803,-255.66,0.00010876,2]
[336066916,1724688631813,-499.99,0.00010876,2]
[336066917,1724688631822,-164.74306907,0.00010876,2]
[336066918,1724688631832,-494.98605906,0.00010876,2]
[336066919,1724688631842,-5836.0,0.00010876,2]
[336066920,1724688631851,-117655.58266354,0.00010877,2]
[336066921,1724688631863,-278.60878409,0.00010877,2]
[336066922,1724688631875,-741.65536624,0.00010877,2]
[336066923,1724688631886,-15909.0,0.00010877,2]
[336066924,1724688631907,-977.48609282,0.00010877,2]
[336066925,1724688631918,-641.6,0.00010877,2]
[336066928,1724688631946,-500.0,0.00010877,2]
[336066930,1724688631962,-598.688581,0.00010877,2]
[336066932,1724688631973,-107697.37851231,0.00010877,2]
[336066935,1724688631983,-4953.5003,0.00010877,2]
[336066936,1724688631993,-39192.262,0.00010877,2]
[336066938,1724688632002,-100000.0,0.00010877,2]
[336066940,1724688632011,-500.0,0.00010877,2]
[336066942,1724688632021,-1000.0,0.00010877,2]
[336066944,1724688632031,-175.10094526,0.00010877,2]
[336066946,1724688632040,-153.03920008,0.00010877,2]
[336066948,1724688632049,-735.30942751,0.00010877,2]
[336066950,1724688632060,-176.86775351,0.00010878,2]
[336066952,1724688632069,-179.65493734,0.00010878,2]
[336066954,1724688632078,-153.03920008,0.00010888,2]
[336066956,1724688632087,-735.30942749,0.00010888,2]
[336066958,1724688632097,-153.03920008,0.00010898,2]
[336066960,1724688632106,-735.30942749,0.00010898,2]
[336066962,1724688632115,-3084.88634727,0.00010899,2]
[336066964,1724688632124,-1026.74612173,0.00010899,2]
[336066966,1724688632134,-1026.74612165,0.00010899,2]
[336066968,1724688632143,-1026.74612165,0.00010899,2]
[336066970,1724688632153,-1026.74612165,0.00010899,2]
[336066972,1724688632162,-1026.74612165,0.00010899,2]
[336066974,1724688632171,-1026.74612165,0.00010899,2]
[336066976,1724688632180,-1026.74612165,0.00010899,2]
[336066978,1724688632190,-1026.74612165,0.00010899,2]
[336066980,1724688632199,-1026.74612165,0.00010899,2]
[336066982,1724688632209,-156.33827564,0.00010899,2]
[336066984,1724688632218,-298.7191451,0.00010899,2]
[336067005,1724688632423,-3000.0,0.00010899,2]
[336067006,1724688632460,-282507.96180226,0.000109,3]
[336067007,1724688632470,-182.0295257,0.000109,2]
[336067008,1724688632480,-150.32,0.000109,2]
[336067009,1724688632490,-2000.0,0.000109,2]
[336067010,1724688632499,-200.0,0.000109,2]
[336067011,1724688632508,-1000.0,0.000109,2]
[336067012,1724688632517,-1000.0,0.000109,2]
[336067013,1724688632527,-1000.0,0.000109,2]
[336067014,1724688632536,-1000.0,0.000109,2]
[336067015,1724688632545,-1000.0,0.000109,2]
[336067016,1724688632554,-336.76980975,0.000109,2]
[336067017,1724688632564,-2000.0,0.000109,2]
[336067018,1724688632573,-200.0,0.000109,2]
[336067019,1724688632582,-2000.0,0.000109,2]
[336067020,1724688632592,-200.0,0.000109,2]
[336067021,1724688632601,-1026.74612165,0.000109,2]
[336067022,1724688632611,-1000.0,0.000109,2]
[336067023,1724688632621,-934.47602135,0.000109,2]
[336067024,1724688632630,-934.4760213,0.000109,2]
[336067025,1724688632640,-934.4760213,0.000109,2]
[336067026,1724688632652,-934.4760213,0.000109,2]
[336067027,1724688632662,-934.4760213,0.000109,2]
[336067028,1724688632671,-334.77863241,0.000109,2]
[336067029,1724688632680,-934.4760213,0.000109,2]
[336067030,1724688632691,-200.0,0.000109,2]
[336067031,1724688632700,-934.4760213,0.000109,2]
[336067032,1724688632710,-934.4760213,0.000109,2]
[336067033,1724688632718,-3680.48,0.000109,2]
[336067034,1724688632730,-3820.38,0.00010902,2]
[336067035,1724688632740,-500.0,0.00010937,2]
[336067036,1724688632749,-150.83,0.00010945,2]
[336067037,1724688632759,-500.0,0.00010946,2]
[336067038,1724688632769,-175.5090904,0.00010948,2]
[336067039,1724688632780,-304.58048687,0.00010949,2]
[336067040,1724688632790,-500.0,0.00010955,2]
[336067041,1724688632800,-1169.19006078,0.00010955,2]
[336067042,1724688632809,-1834.73,0.00010958,2]
[336067043,1724688632819,-1834.73,0.00010958,2]
[336067044,1724688632829,-2173.07,0.00010958,2]
[336067045,1724688632839,-2173.07,0.00010958,2]
[336067046,1724688632848,-517.09,0.00010958,2]
[336067047,1724688632857,-517.09,0.00010958,2]
[336067048,1724688632867,-1111.37,0.00010958,2]
[336067049,1724688632876,-1111.37,0.00010958,2]
[336067050,1724688632888,-500.0,0.00010958,2]
[336067051,1724688632898,-500.0,0.00010958,2]
[336067052,1724688632907,-500.0,0.00010958,2]
[336067053,1724688632917,-607.31,0.00010958,2]
[336067054,1724688632926,-243.8164775,0.00010958,2]
[336067055,1724688632935,-432.70419531,0.00010958,2]
[336067056,1724688632945,-500.0,0.00010958,2]
[336067057,1724688632954,-500.0,0.00010958,2]
[336067058,1724688632963,-500.0,0.00010958,2]
[336067059,1724688632973,-500.0,0.00010958,2]
[336067060,1724688632983,-500.0,0.00010958,2]
[336067061,1724688632992,-500.0,0.00010958,2]
[336067062,1724688633001,-323.00183962,0.00010958,2]
[336067063,1724688633010,-500.0,0.00010958,2]
[336067064,1724688633020,-500.0,0.00010958,2]
[336067065,1724688633029,-500.0,0.00010958,2]
[336067066,1724688633039,-500.0,0.00010958,2]
[336067067,1724688633049,-500.0,0.00010958,2]
[336067068,1724688633058,-455.47933617,0.00010958,2]
[336067069,1724688633068,-500.0,0.00010958,2]
[336067070,1724688633077,-500.0,0.00010958,2]
[336067071,1724688633087,-500.0,0.00010958,2]
[336067072,1724688633097,-500.0,0.00010958,2]
[336067073,1724688633106,-517.03019114,0.00010958,2]
[336067074,1724688633116,-500.0,0.00010958,2]
[336067075,1724688633125,-500.0,0.00010958,2]
[336067076,1724688633134,-804.09,0.00010958,2]
[336067077,1724688633143,-804.09,0.00010958,2]
[336067078,1724688633153,-500.0,0.00010958,2]
[336067079,1724688633162,-500.0,0.00010958,2]
[336067080,1724688633172,-500.0,0.00010958,2]
[336067081,1724688633181,-500.0,0.00010958,2]
[336067082,1724688633191,-613.47,0.00010958,2]
[336067083,1724688633201,-613.47,0.00010958,2]
[336067084,1724688633211,-500.0,0.00010958,2]
[336067085,1724688633220,-500.0,0.00010958,2]
[336067086,1724688633229,-500.0,0.00010958,2]
[336067087,1724688633239,-500.0,0.00010958,2]
[336067088,1724688633249,-500.0,0.00010958,2]
[336067089,1724688633259,-500.0,0.00010958,2]
[336067090,1724688633268,-500.0,0.00010958,2]
[336067091,1724688633277,-500.0,0.00010958,2]
[336067092,1724688633287,-500.0,0.00010958,2]
[336067093,1724688633296,-500.0,0.00010958,2]
[336067094,1724688633306,-500.0,0.00010958,2]
[336067095,1724688633316,-500.0,0.00010958,2]
[336067096,1724688633326,-500.0,0.00010958,2]
[336067097,1724688633335,-500.0,0.00010958,2]
[336067098,1724688633344,-500.0,0.00010958,2]
[336067099,1724688633355,-500.0,0.00010958,2]
[336067100,1724688633364,-500.0,0.00010958,2]
[336067101,1724688633373,-500.0,0.00010958,2]
[336067102,1724688633383,-500.0,0.00010958,2]
[336067103,1724688633392,-500.0,0.00010958,2]
[336067104,1724688633402,-571.79,0.00010958,2]
[336067105,1724688633412,-571.79,0.00010958,2]
[336067106,1724688633422,-684.31,0.00010958,2]
[336067107,1724688633431,-684.31,0.00010958,2]
[336067108,1724688633441,-500.0,0.00010958,2]
[336067109,1724688633450,-500.0,0.00010958,2]
[336067110,1724688633460,-500.0,0.00010958,2]
[336067111,1724688633470,-500.0,0.00010958,2]
[336067112,1724688633480,-500.0,0.00010958,2]
[336067113,1724688633490,-500.0,0.00010958,2]
[336067114,1724688633500,-500.0,0.00010958,2]
[336067115,1724688633510,-500.0,0.00010958,2]
[336067116,1724688633532,-500.0,0.00010958,2]
[336067117,1724688633541,-500.0,0.00010958,2]
[336067118,1724688633551,-500.0,0.00010958,2]
[336067119,1724688633560,-500.0,0.00010958,2]
[336067120,1724688633570,-570.85337019,0.00010958,2]
[336067121,1724688633579,-500.0,0.00010958,2]
[336067122,1724688633589,-500.0,0.00010958,2]
[336067123,1724688633598,-500.0,0.00010958,2]
[336067124,1724688633607,-500.0,0.00010958,2]
[336067125,1724688633617,-500.0,0.00010958,2]
[336067126,1724688633626,-500.0,0.00010958,2]
[336067127,1724688633636,-643.63321372,0.00010958,2]
[336067128,1724688633649,-500.0,0.00010958,2]
[336067129,1724688633658,-500.0,0.00010958,2]
[336067130,1724688633668,-500.0,0.00010958,2]
[336067131,1724688633678,-607.58068089,0.00010958,2]
[336067132,1724688633687,-846.58,0.00010958,2]
[336067133,1724688633697,-846.58,0.00010958,2]
[336067134,1724688633706,-500.0,0.00010958,2]
[336067135,1724688633716,-500.0,0.00010958,2]
[336067136,1724688633727,-500.0,0.00010958,2]
[336067137,1724688633737,-500.0,0.00010958,2]
[336067138,1724688633746,-500.0,0.00010958,2]
[336067139,1724688633756,-1512.81,0.00010958,2]
[336067140,1724688633765,-500.0,0.00010958,2]
[336067141,1724688633775,-1512.81,0.00010958,2]
[336067142,1724688633786,-500.0,0.00010958,2]
[336067143,1724688633796,-504.45,0.00010958,2]
[336067144,1724688633805,-500.0,0.00010958,2]
[336067145,1724688633815,-500.0,0.00010958,2]
[336067146,1724688633825,-659.86,0.00010958,2]
[336067147,1724688633834,-659.86,0.00010958,2]
[336067148,1724688633844,-500.0,0.00010958,2]
[336067149,1724688633854,-500.0,0.00010958,2]
[336067150,1724688633863,-500.0,0.00010958,2]
[336067151,1724688633873,-500.0,0.00010958,2]
[336067152,1724688633882,-500.0,0.00010958,2]
[336067153,1724688633892,-500.0,0.00010958,2]
[336067154,1724688633902,-500.0,0.00010958,2]
[336067155,1724688633912,-500.0,0.00010958,2]
[336067156,1724688633921,-500.0,0.00010958,2]
[336067157,1724688633931,-500.0,0.00010958,2]
[336067158,1724688633940,-928.61,0.00010958,2]
[336067159,1724688633950,-928.61,0.00010958,2]
[336067160,1724688633959,-4908.7,0.00010958,2]
[336067161,1724688633969,-4908.7,0.00010958,2]
[336067162,1724688633979,-500.0,0.00010958,2]
[336067163,1724688633988,-500.0,0.00010958,2]
[336067164,1724688633997,-500.0,0.00010958,2]
[336067165,1724688634007,-500.0,0.00010958,2]
[336067166,1724688634017,-617.57,0.00010958,2]
[336067167,1724688634027,-1675.34,0.00010958,2]
[336067168,1724688634038,-1295.82,0.00010958,2]
[336067169,1724688634047,-1675.34,0.00010958,2]
[336067170,1724688634056,-1295.82,0.00010958,2]
[336067171,1724688634065,-500.0,0.00010958,2]
[336067172,1724688634075,-500.0,0.00010958,2]
[336067173,1724688634084,-500.0,0.00010958,2]
[336067174,1724688634093,-500.0,0.00010958,2]
[336067175,1724688634103,-552.02,0.00010958,2]
[336067176,1724688634113,-552.02,0.00010958,2]
[336067177,1724688634122,-2407.72,0.00010958,2]
[336067178,1724688634132,-2407.72,0.00010958,2]
[336067179,1724688634141,-500.0,0.00010958,2]
[336067180,1724688634150,-500.0,0.00010958,2]
[336067181,1724688634159,-500.0,0.00010958,2]
[336067182,1724688634168,-500.0,0.00010958,2]
[336067183,1724688634177,-500.0,0.00010958,2]
[336067184,1724688634186,-500.0,0.00010958,2]
[336067185,1724688634195,-3067.42,0.00010958,2]
[336067186,1724688634204,-3067.42,0.00010958,2]
[336067187,1724688634214,-500.0,0.00010958,2]
[336067188,1724688634224,-500.0,0.00010958,2]
[336067189,1724688634233,-580.4897633,0.00010958,2]
[336067190,1724688634243,-500.0,0.00010958,2]
[336067191,1724688634252,-500.0,0.00010958,2]
[336067192,1724688634261,-500.0,0.00010958,2]
[336067193,1724688634271,-500.0,0.00010958,2]
[336067194,1724688634281,-500.0,0.00010958,2]
[336067195,1724688634292,-500.0,0.00010958,2]
[336067196,1724688634301,-1215.63,0.00010958,2]
[336067197,1724688634310,-1215.63,0.00010958,2]
[336067198,1724688634319,-500.0,0.00010958,2]
[336067199,1724688634329,-506.07,0.00010958,2]
[336067200,1724688634339,-500.0,0.00010958,2]
[336067201,1724688634348,-500.0,0.00010958,2]
[336067202,1724688634357,-500.0,0.00010958,2]
[336067203,1724688634366,-212.31004501,0.00010958,2]
[336067204,1724688634375,-500.0,0.00010958,2]
[336067205,1724688634385,-500.0,0.00010958,2]
[336067206,1724688634394,-552.43,0.00010958,2]
[336067207,1724688634403,-151.0,0.00010958,2]
[336067208,1724688634413,-1422.31,0.00010958,2]
[336067209,1724688634423,-1422.31,0.00010958,2]
[336067210,1724688634432,-500.0,0.00010958,2]
[336067211,1724688634442,-500.0,0.00010958,2]
[336067212,1724688634451,-722.1,0.00010958,2]
[336067213,1724688634461,-722.1,0.00010958,2]
[336067214,1724688634471,-500.0,0.00010958,2]
[336067215,1724688634480,-500.0,0.00010958,2]
[336067216,1724688634490,-500.0,0.00010958,2]
[336067217,1724688634499,-500.0,0.00010958,2]
[336067218,1724688634508,-151.0,0.00010958,2]
[336067219,1724688634517,-263.786702,0.00010958,2]
[336067220,1724688634527,-500.0,0.00010958,2]
[336067221,1724688634542,-1747.42,0.00010958,2]
[336067222,1724688634550,-500.0,0.00010958,2]
[336067223,1724688634559,-1747.42,0.00010958,2]
[336067224,1724688634568,-151.0,0.00010958,2]
[336067225,1724688634578,-263.786702,0.00010958,2]
[336067226,1724688634587,-500.0,0.00010958,2]
[336067227,1724688634596,-500.0,0.00010958,2]
[336067228,1724688634606,-500.0,0.00010958,2]
[336067229,1724688634615,-500.0,0.00010958,2]